[Event "Titled Tuesday Blitz January 17 Early 2023"]
[White "Kamalidenova, Meruert"]
[Black "Zanette, Edgard Vinicius"]
[WhiteFideId "13712802"]
[BlackFideId "2109263"]
[WhiteElo "2350"]
[BlackElo "2085"]
[Result "1-0"]
[Round "05"]
[TimeControl "180+2"]
[Date "2023.01.17"]
[WhiteClock "0:01:12"]
[BlackClock "0:00:02"]

1. e4 {[%clk 0:03:00]}  c5 {[%clk 0:02:59]} 2. Nf3 {[%clk 0:02:59]}  d6 {[%clk 0:02:59]} 3. d4 {[%clk 0:02:59]}  cxd4 {[%clk 0:02:59]} 4. Nxd4 {[%clk 0:03:00]}  Nf6 {[%clk 0:02:59]} 5. Nc3 {[%clk 0:03:00]}  a6 {[%clk 0:02:57]} 6. Be2 {[%clk 0:03:00]}  e5 {[%clk 0:02:56]} 7. Nb3 {[%clk 0:03:00]}  Be7 {[%clk 0:02:45]} 8. Be3 {[%clk 0:03:00]}  O-O {[%clk 0:02:32]} 9. g4 {[%clk 0:02:59]}  Be6 {[%clk 0:02:24]} 10. g5 {[%clk 0:02:59]}  Nfd7 {[%clk 0:02:24]} 11. h4 {[%clk 0:02:59]}  Nc6 {[%clk 0:02:17]} 12. Qd2 {[%clk 0:02:57]}  b5 {[%clk 0:02:03]} 13. O-O-O {[%clk 0:02:57]}  Rc8 {[%clk 0:01:55]} 14. Kb1 {[%clk 0:02:56]}  Nb6 {[%clk 0:01:50]} 15. f4 {[%clk 0:02:47]}  exf4 {[%clk 0:01:47]} 16. Bxf4 {[%clk 0:02:47]}  Ne5 {[%clk 0:01:41]} 17. Nd4 {[%clk 0:02:30]}  Bc4 {[%clk 0:01:32]} 18. Bxc4 {[%clk 0:02:23]}  Nbxc4 {[%clk 0:01:30]} 19. Qe1 {[%clk 0:02:19]}  Qc7 {[%clk 0:01:25]} 20. Nd5 {[%clk 0:02:19]}  Qb7 {[%clk 0:01:11]} 21. Nf5 {[%clk 0:02:16]}  Bd8 {[%clk 0:01:09]} 22. Qg3 {[%clk 0:02:11]}  Re8 {[%clk 0:00:45]} 23. Bxe5 {[%clk 0:02:09]}  dxe5 {[%clk 0:00:42]} 24. Nf6+ {[%clk 0:02:07]}  Bxf6 {[%clk 0:00:35]} 25. gxf6 {[%clk 0:02:08]}  g6 {[%clk 0:00:35]} 26. Nh6+ {[%clk 0:01:32]}  Kh8 {[%clk 0:00:35]} 27. h5 {[%clk 0:01:32]}  Rc7 {[%clk 0:00:32]} 28. hxg6 {[%clk 0:01:31]}  fxg6 {[%clk 0:00:32]} 29. f7 {[%clk 0:01:30]}  Rxf7 {[%clk 0:00:32]} 30. Nxf7+ {[%clk 0:01:29]}  Qxf7 {[%clk 0:00:33]} 31. Qg5 {[%clk 0:01:27]}  Rc8 {[%clk 0:00:27]} 32. Rdf1 {[%clk 0:01:24]}  Qg7 {[%clk 0:00:24]} 33. Rf6 {[%clk 0:01:18]}  Nd2+ {[%clk 0:00:22]} 34. Qxd2 {[%clk 0:01:12]}  Qxf6 {[%clk 0:00:22]} 35. Qd7 {[%clk 0:01:13]}  Re8 {[%clk 0:00:02]} 36. Qxh7# {[%clk 0:01:12]} 1-0


[Site "https://www.chess.com"]

[Event "Titled Tuesday Blitz January 17 Early 2023"]
[White "Bagwe Gaurang"]
[Black "Skurikhin, Dmitrij"]
[WhiteFideId "45039895"]
[BlackFideId "4161297"]
[WhiteElo "2067"]
[BlackElo "2297"]
[Result "1-0"]
[Round "05"]
[TimeControl "180+2"]
[Date "2023.01.17"]
[WhiteClock "0:00:09"]
[BlackClock "0:00:03"]

1. d4 {[%clk 0:03:00]}  d5 {[%clk 0:02:47]} 2. Nf3 {[%clk 0:03:01]}  Nf6 {[%clk 0:02:45]} 3. e3 {[%clk 0:03:01]}  Bf5 {[%clk 0:02:32]} 4. c4 {[%clk 0:02:56]}  c6 {[%clk 0:02:31]} 5. cxd5 {[%clk 0:02:49]}  cxd5 {[%clk 0:02:31]} 6. Qb3 {[%clk 0:02:45]}  Qc8 {[%clk 0:02:28]} 7. Nc3 {[%clk 0:02:35]}  e6 {[%clk 0:02:25]} 8. Bd2 {[%clk 0:02:35]}  Nc6 {[%clk 0:02:24]} 9. Rc1 {[%clk 0:02:36]}  Be7 {[%clk 0:02:24]} 10. Bb5 {[%clk 0:02:32]}  O-O {[%clk 0:02:23]} 11. Ne5 {[%clk 0:02:31]}  Nxe5 {[%clk 0:01:52]} 12. dxe5 {[%clk 0:02:30]}  Ng4 {[%clk 0:01:41]} 13. Nxd5 {[%clk 0:02:24]}  Qd8 {[%clk 0:01:36]} 14. Nxe7+ {[%clk 0:02:22]}  Qxe7 {[%clk 0:01:37]} 15. Bb4 {[%clk 0:02:07]}  Qh4 {[%clk 0:01:33]} 16. g3 {[%clk 0:01:49]}  Qh3 {[%clk 0:01:32]} 17. Bf1 {[%clk 0:01:39]}  Qh6 {[%clk 0:01:31]} 18. Bxf8 {[%clk 0:01:31]}  Rxf8 {[%clk 0:01:32]} 19. Bg2 {[%clk 0:01:31]}  Nxe5 {[%clk 0:01:27]} 20. O-O {[%clk 0:01:29]}  b6 {[%clk 0:01:18]} 21. Rc7 {[%clk 0:01:25]}  Qh5 {[%clk 0:00:52]} 22. e4 {[%clk 0:01:16]}  Bh3 {[%clk 0:00:46]} 23. Rfc1 {[%clk 0:01:04]}  h6 {[%clk 0:00:30]} 24. Qd1 {[%clk 0:00:32]}  Bg4 {[%clk 0:00:27]} 25. Qf1 {[%clk 0:00:24]}  Be2 {[%clk 0:00:21]} 26. Qe1 {[%clk 0:00:22]}  Nf3+ {[%clk 0:00:21]} 27. Bxf3 {[%clk 0:00:22]}  Bxf3 {[%clk 0:00:22]} 28. Rc8 {[%clk 0:00:19]}  Rxc8 {[%clk 0:00:20]} 29. Rxc8+ {[%clk 0:00:19]}  Kh7 {[%clk 0:00:21]} 30. Rc3 {[%clk 0:00:17]}  Qg4 {[%clk 0:00:19]} 31. Qe3 {[%clk 0:00:14]}  Bd1 {[%clk 0:00:16]} 32. f3 {[%clk 0:00:13]}  Qg6 {[%clk 0:00:14]} 33. b3 {[%clk 0:00:13]}  e5 {[%clk 0:00:12]} 34. Rd3 {[%clk 0:00:13]}  Bc2 {[%clk 0:00:12]} 35. Rd2 {[%clk 0:00:10]}  Bb1 {[%clk 0:00:11]} 36. Qe1 {[%clk 0:00:10]}  Qg5 {[%clk 0:00:10]} 37. Rd7 {[%clk 0:00:09]}  Bxa2 {[%clk 0:00:03]} 38. Qd2 {[%clk 0:00:09]} 1-0


[Site "https://www.chess.com"]

[Event "Titled Tuesday Blitz January 17 Early 2023"]
[White "Kassimov, Baurzhan"]
[Black "Kabilov, Amin"]
[WhiteFideId "13704800"]
[BlackFideId "14700859"]
[WhiteElo "2285"]
[BlackElo "2207"]
[Result "0-1"]
[Round "05"]
[TimeControl "180+2"]
[Date "2023.01.17"]
[WhiteClock "0:00:02"]
[BlackClock "0:00:01"]

1. d4 {[%clk 0:03:00]}  Nf6 {[%clk 0:02:58]} 2. Nf3 {[%clk 0:03:00]}  g6 {[%clk 0:02:52]} 3. g3 {[%clk 0:02:58]}  Bg7 {[%clk 0:02:52]} 4. Bg2 {[%clk 0:02:59]}  O-O {[%clk 0:02:53]} 5. O-O {[%clk 0:02:59]}  d6 {[%clk 0:02:51]} 6. c4 {[%clk 0:02:59]}  Nbd7 {[%clk 0:02:52]} 7. Nc3 {[%clk 0:03:00]}  e5 {[%clk 0:02:51]} 8. e4 {[%clk 0:03:01]}  Re8 {[%clk 0:02:49]} 9. d5 {[%clk 0:03:01]}  Nc5 {[%clk 0:02:35]} 10. Qc2 {[%clk 0:02:59]}  a5 {[%clk 0:02:30]} 11. b3 {[%clk 0:02:58]}  c6 {[%clk 0:02:09]} 12. Be3 {[%clk 0:02:38]}  cxd5 {[%clk 0:01:22]} 13. cxd5 {[%clk 0:02:29]}  b6 {[%clk 0:01:21]} 14. Rfe1 {[%clk 0:02:20]}  Ba6 {[%clk 0:01:07]} 15. Bf1 {[%clk 0:02:19]}  Bxf1 {[%clk 0:01:04]} 16. Rxf1 {[%clk 0:02:20]}  Rc8 {[%clk 0:01:04]} 17. Nd2 {[%clk 0:02:16]}  Ncxe4 {[%clk 0:00:57]} 18. Ndxe4 {[%clk 0:01:53]}  Nxe4 {[%clk 0:00:56]} 19. Qxe4 {[%clk 0:01:54]}  Rxc3 {[%clk 0:00:55]} 20. Rac1 {[%clk 0:01:53]}  f5 {[%clk 0:00:31]} 21. Qa4 {[%clk 0:01:49]}  e4 {[%clk 0:00:20]} 22. Rxc3 {[%clk 0:01:47]}  Bxc3 {[%clk 0:00:19]} 23. Qc6 {[%clk 0:01:48]}  Be5 {[%clk 0:00:17]} 24. Bxb6 {[%clk 0:01:47]}  Qe7 {[%clk 0:00:15]} 25. Rc1 {[%clk 0:01:42]}  Rf8 {[%clk 0:00:13]} 26. Qc7 {[%clk 0:01:36]}  Qg5 {[%clk 0:00:12]} 27. Qc2 {[%clk 0:00:35]}  f4 {[%clk 0:00:11]} 28. Kg2 {[%clk 0:00:31]}  e3 {[%clk 0:00:10]} 29. Rf1 {[%clk 0:00:17]}  f3+ {[%clk 0:00:09]} 30. Kh1 {[%clk 0:00:18]}  e2 {[%clk 0:00:10]} 31. Rg1 {[%clk 0:00:16]}  Qg4 {[%clk 0:00:10]} 32. Be3 {[%clk 0:00:15]}  Rc8 {[%clk 0:00:09]} 33. Qd2 {[%clk 0:00:14]}  Qh3 {[%clk 0:00:08]} 34. Qxa5 {[%clk 0:00:12]}  Qf1 {[%clk 0:00:08]} 35. Qe1 {[%clk 0:00:11]}  Qh3 {[%clk 0:00:06]} 36. a4 {[%clk 0:00:10]}  Bc3 {[%clk 0:00:03]} 37. Qc1 {[%clk 0:00:09]}  e1=Q {[%clk 0:00:03]} 38. Qxe1 {[%clk 0:00:02]}  Bxe1 {[%clk 0:00:03]} 39. a5 {[%clk 0:00:03]}  Bxa5 {[%clk 0:00:02]} 40. b4 {[%clk 0:00:03]}  Bxb4 {[%clk 0:00:03]} 41. Bf4 {[%clk 0:00:03]}  Bc5 {[%clk 0:00:02]} 42. Rc1 {[%clk 0:00:02]}  Qg2# {[%clk 0:00:01]} 0-1


[Site "https://www.chess.com"]

[Event "Titled Tuesday Blitz January 17 Early 2023"]
[White "Jenkins, Drake"]
[Black "Cappai, Davide"]
[WhiteFideId "2022397"]
[BlackFideId "813338"]
[WhiteElo "2130"]
[BlackElo "2140"]
[Result "0-1"]
[Round "05"]
[TimeControl "180+2"]
[Date "2023.01.17"]
[WhiteClock "0:00:03"]
[BlackClock "0:01:40"]

1. Nf3 {[%clk 0:02:58]}  g6 {[%clk 0:02:54]} 2. c4 {[%clk 0:02:58]}  Bg7 {[%clk 0:02:54]} 3. g3 {[%clk 0:02:58]}  c5 {[%clk 0:02:55]} 4. Bg2 {[%clk 0:02:58]}  Nc6 {[%clk 0:02:55]} 5. O-O {[%clk 0:02:58]}  d6 {[%clk 0:02:56]} 6. Nc3 {[%clk 0:02:58]}  Nh6 {[%clk 0:02:56]} 7. a3 {[%clk 0:02:56]}  a5 {[%clk 0:02:56]} 8. Nb5 {[%clk 0:02:49]}  O-O {[%clk 0:02:55]} 9. d4 {[%clk 0:02:47]}  cxd4 {[%clk 0:02:55]} 10. Nfxd4 {[%clk 0:02:43]}  Bd7 {[%clk 0:02:55]} 11. h3 {[%clk 0:02:32]}  Nf5 {[%clk 0:02:41]} 12. e3 {[%clk 0:01:55]}  Rc8 {[%clk 0:02:39]} 13. Nxf5 {[%clk 0:01:42]}  Bxf5 {[%clk 0:02:38]} 14. Qe2 {[%clk 0:01:41]}  Ne5 {[%clk 0:02:30]} 15. Bxb7 {[%clk 0:01:37]}  Rb8 {[%clk 0:02:19]} 16. Bd5 {[%clk 0:01:04]}  e6 {[%clk 0:02:11]} 17. Bg2 {[%clk 0:00:53]}  Bd3 {[%clk 0:02:10]} 18. Qd1 {[%clk 0:00:34]}  Bxc4 {[%clk 0:02:06]} 19. Nxd6 {[%clk 0:00:33]}  Bxf1 {[%clk 0:02:03]} 20. Bxf1 {[%clk 0:00:16]}  Rb6 {[%clk 0:02:01]} 21. f4 {[%clk 0:00:10]}  Rxd6 {[%clk 0:02:00]} 22. Qe2 {[%clk 0:00:09]}  Nd3 {[%clk 0:01:54]} 23. Bd2 {[%clk 0:00:07]}  Nxb2 {[%clk 0:01:54]} 24. Be1 {[%clk 0:00:05]}  Nd3 {[%clk 0:01:52]} 25. Rb1 {[%clk 0:00:04]}  Nxe1 {[%clk 0:01:52]} 26. Qxe1 {[%clk 0:00:05]}  Qc7 {[%clk 0:01:43]} 27. a4 {[%clk 0:00:03]}  Rc8 {[%clk 0:01:41]} 28. Bb5 {[%clk 0:00:03]}  Qc5 {[%clk 0:01:40]} 0-1


[Site "https://www.chess.com"]

[Event "Titled Tuesday Blitz January 17 Early 2023"]
[White "Bosnjak, Petar"]
[Black "Lauridsen, Jesper Morch"]
[WhiteFideId "14532581"]
[BlackFideId "1401890"]
[WhiteElo "2337"]
[BlackElo "2309"]
[Result "1/2-1/2"]
[Round "05"]
[TimeControl "180+2"]
[Date "2023.01.17"]
[WhiteClock "0:01:43"]
[BlackClock "0:00:08"]

1. d4 {[%clk 0:02:57]}  d5 {[%clk 0:02:59]} 2. c4 {[%clk 0:02:57]}  e6 {[%clk 0:02:59]} 3. Nc3 {[%clk 0:02:56]}  c5 {[%clk 0:03:00]} 4. cxd5 {[%clk 0:02:55]}  exd5 {[%clk 0:03:00]} 5. Nf3 {[%clk 0:02:55]}  Nc6 {[%clk 0:03:00]} 6. g3 {[%clk 0:02:55]}  Nf6 {[%clk 0:02:59]} 7. Bg2 {[%clk 0:02:56]}  cxd4 {[%clk 0:03:00]} 8. Nxd4 {[%clk 0:02:54]}  Bc5 {[%clk 0:03:00]} 9. Nb3 {[%clk 0:02:54]}  Bb6 {[%clk 0:03:00]} 10. O-O {[%clk 0:02:54]}  d4 {[%clk 0:03:00]} 11. Na4 {[%clk 0:02:54]}  O-O {[%clk 0:02:59]} 12. Bg5 {[%clk 0:02:54]}  Re8 {[%clk 0:02:58]} 13. Nxb6 {[%clk 0:02:52]}  axb6 {[%clk 0:02:53]} 14. Bxc6 {[%clk 0:02:52]}  bxc6 {[%clk 0:02:53]} 15. Qxd4 {[%clk 0:02:52]}  Qxd4 {[%clk 0:02:19]} 16. Nxd4 {[%clk 0:02:51]}  c5 {[%clk 0:02:04]} 17. Nb5 {[%clk 0:02:07]}  Rxe2 {[%clk 0:01:59]} 18. Rfe1 {[%clk 0:02:08]}  Rxa2 {[%clk 0:01:47]} 19. Nc3 {[%clk 0:02:05]}  Rxa1 {[%clk 0:01:26]} 20. Rxa1 {[%clk 0:02:06]}  Re8 {[%clk 0:01:14]} 21. Bxf6 {[%clk 0:02:05]}  gxf6 {[%clk 0:01:14]} 22. Nd5 {[%clk 0:02:06]}  Kg7 {[%clk 0:01:09]} 23. Nxb6 {[%clk 0:02:04]}  Bh3 {[%clk 0:00:58]} 24. Rc1 {[%clk 0:02:04]}  Re2 {[%clk 0:00:50]} 25. Na4 {[%clk 0:02:04]}  c4 {[%clk 0:00:43]} 26. Nb6 {[%clk 0:02:02]}  Be6 {[%clk 0:00:21]} 27. Nxc4 {[%clk 0:01:59]}  Bxc4 {[%clk 0:00:21]} 28. Rxc4 {[%clk 0:02:00]}  Rxb2 {[%clk 0:00:21]} 29. Rc5 {[%clk 0:01:59]}  Kg6 {[%clk 0:00:19]} 30. g4 {[%clk 0:01:58]}  Rb3 {[%clk 0:00:18]} 31. Kg2 {[%clk 0:01:56]}  Ra3 {[%clk 0:00:18]} 32. Rb5 {[%clk 0:01:55]}  h6 {[%clk 0:00:17]} 33. f3 {[%clk 0:01:54]}  Rc3 {[%clk 0:00:17]} 34. Kg3 {[%clk 0:01:54]}  Rc2 {[%clk 0:00:16]} 35. h4 {[%clk 0:01:50]}  Ra2 {[%clk 0:00:16]} 36. h5+ {[%clk 0:01:49]}  Kg7 {[%clk 0:00:15]} 37. Rb6 {[%clk 0:01:49]}  Ra4 {[%clk 0:00:14]} 38. Rb5 {[%clk 0:01:49]}  Rc4 {[%clk 0:00:14]} 39. Kf2 {[%clk 0:01:48]}  Rc3 {[%clk 0:00:13]} 40. Ke2 {[%clk 0:01:48]}  Ra3 {[%clk 0:00:13]} 41. Rb4 {[%clk 0:01:48]}  Rc3 {[%clk 0:00:12]} 42. Rd4 {[%clk 0:01:48]}  Ra3 {[%clk 0:00:12]} 43. Rd3 {[%clk 0:01:49]}  Ra2+ {[%clk 0:00:12]} 44. Ke3 {[%clk 0:01:49]}  Ra1 {[%clk 0:00:11]} 45. Ke4 {[%clk 0:01:49]}  Ra4+ {[%clk 0:00:10]} 46. Rd4 {[%clk 0:01:49]}  Ra3 {[%clk 0:00:09]} 47. f4 {[%clk 0:01:48]}  Rg3 {[%clk 0:00:08]} 48. Kf5 {[%clk 0:01:47]}  Ra3 {[%clk 0:00:07]} 49. Rd5 {[%clk 0:01:46]}  Ra4 {[%clk 0:00:07]} 50. Rb5 {[%clk 0:01:47]}  Rc4 {[%clk 0:00:07]} 51. Rb6 {[%clk 0:01:47]}  Rc5+ {[%clk 0:00:07]} 52. Ke4 {[%clk 0:01:47]}  Rc4+ {[%clk 0:00:07]} 53. Ke3 {[%clk 0:01:47]}  Rc3+ {[%clk 0:00:08]} 54. Kf2 {[%clk 0:01:47]}  Rc2+ {[%clk 0:00:08]} 55. Kg3 {[%clk 0:01:48]}  Rc3+ {[%clk 0:00:08]} 56. Kf2 {[%clk 0:01:43]}  Rc4 {[%clk 0:00:08]} 57. Ke3 {[%clk 0:01:42]}  Rc3+ {[%clk 0:00:08]} 58. Ke4 {[%clk 0:01:41]}  Rc4+ {[%clk 0:00:08]} 59. Kf3 {[%clk 0:01:42]}  Rc3+ {[%clk 0:00:08]} 60. Kf2 {[%clk 0:01:43]} 1/2-1/2


[Site "https://www.chess.com"]

[Event "Titled Tuesday Blitz January 17 Early 2023"]
[White "Jimenez Almeida, Luis David"]
[Black "Ruge, Edison"]
[WhiteFideId "22242244"]
[BlackFideId "4401000"]
[WhiteElo "2242"]
[BlackElo "2201"]
[Result "1-0"]
[Round "05"]
[TimeControl "180+2"]
[Date "2023.01.17"]
[WhiteClock "0:00:08"]
[BlackClock "0:00:01"]

1. e4 {[%clk 0:03:00]}  e5 {[%clk 0:02:54]} 2. Nf3 {[%clk 0:03:00]}  Nc6 {[%clk 0:02:54]} 3. Bb5 {[%clk 0:03:01]}  f5 {[%clk 0:02:53]} 4. d3 {[%clk 0:02:59]}  fxe4 {[%clk 0:02:52]} 5. dxe4 {[%clk 0:03:00]}  Nf6 {[%clk 0:02:50]} 6. Be3 {[%clk 0:03:00]}  Bb4+ {[%clk 0:02:40]} 7. c3 {[%clk 0:02:59]}  Ba5 {[%clk 0:02:38]} 8. Nbd2 {[%clk 0:02:59]}  Bb6 {[%clk 0:02:36]} 9. Qe2 {[%clk 0:02:59]}  Bxe3 {[%clk 0:02:33]} 10. Qxe3 {[%clk 0:03:00]}  d6 {[%clk 0:02:33]} 11. Bc4 {[%clk 0:02:57]}  Qe7 {[%clk 0:02:32]} 12. h3 {[%clk 0:02:52]}  Nd8 {[%clk 0:02:32]} 13. Nh4 {[%clk 0:02:44]}  Be6 {[%clk 0:02:19]} 14. Nf5 {[%clk 0:02:43]}  Qd7 {[%clk 0:02:19]} 15. g4 {[%clk 0:02:33]}  Bxc4 {[%clk 0:02:18]} 16. Nxc4 {[%clk 0:02:33]}  Ne6 {[%clk 0:02:14]} 17. O-O-O {[%clk 0:02:31]}  Qa4 {[%clk 0:02:08]} 18. Ncxd6+ {[%clk 0:02:17]}  cxd6 {[%clk 0:02:05]} 19. Nxd6+ {[%clk 0:02:18]}  Kf8 {[%clk 0:01:59]} 20. g5 {[%clk 0:02:05]}  Nh5 {[%clk 0:01:53]} 21. Kb1 {[%clk 0:01:38]}  Nhf4 {[%clk 0:01:51]} 22. Nf5 {[%clk 0:01:22]}  g6 {[%clk 0:01:45]} 23. Rd6 {[%clk 0:01:12]}  Rd8 {[%clk 0:01:34]} 24. Rhd1 {[%clk 0:01:05]}  Rxd6 {[%clk 0:01:10]} 25. Rxd6 {[%clk 0:01:06]}  Qc4 {[%clk 0:00:39]} 26. Ng3 {[%clk 0:00:36]}  Ke7 {[%clk 0:00:35]} 27. Rd1 {[%clk 0:00:32]}  Rd8 {[%clk 0:00:34]} 28. Rxd8 {[%clk 0:00:28]}  Kxd8 {[%clk 0:00:32]} 29. Qxa7 {[%clk 0:00:27]}  Qd3+ {[%clk 0:00:30]} 30. Kc1 {[%clk 0:00:28]}  Kc7 {[%clk 0:00:18]} 31. Qa5+ {[%clk 0:00:26]}  Kc6 {[%clk 0:00:17]} 32. Qxe5 {[%clk 0:00:24]}  Qd6 {[%clk 0:00:14]} 33. Qa5 {[%clk 0:00:21]}  Nd3+ {[%clk 0:00:12]} 34. Kb1 {[%clk 0:00:21]}  Ndc5 {[%clk 0:00:12]} 35. Kc1 {[%clk 0:00:15]}  Nf4 {[%clk 0:00:11]} 36. b4 {[%clk 0:00:13]}  Nfd3+ {[%clk 0:00:08]} 37. Kb1 {[%clk 0:00:13]}  Na6 {[%clk 0:00:08]} 38. b5+ {[%clk 0:00:10]}  Kd7 {[%clk 0:00:08]} 39. bxa6 {[%clk 0:00:10]}  bxa6 {[%clk 0:00:06]} 40. Qd5 {[%clk 0:00:10]}  Qxd5 {[%clk 0:00:06]} 41. exd5 {[%clk 0:00:11]}  Nxf2 {[%clk 0:00:06]} 42. h4 {[%clk 0:00:08]}  Kd6 {[%clk 0:00:04]} 43. c4 {[%clk 0:00:08]}  Nd3 {[%clk 0:00:05]} 44. Kc2 {[%clk 0:00:08]}  Ne5 {[%clk 0:00:05]} 45. Kc3 {[%clk 0:00:07]}  Nf3 {[%clk 0:00:05]} 46. Ne4+ {[%clk 0:00:07]}  Ke5 {[%clk 0:00:05]} 47. Nf6 {[%clk 0:00:08]}  Nxh4 {[%clk 0:00:05]} 48. Nxh7 {[%clk 0:00:08]}  Nf3 {[%clk 0:00:05]} 49. Nf8 {[%clk 0:00:08]}  Kf5 {[%clk 0:00:04]} 50. d6 {[%clk 0:00:08]}  Nxg5 {[%clk 0:00:03]} 51. d7 {[%clk 0:00:09]}  Nf7 {[%clk 0:00:04]} 52. c5 {[%clk 0:00:07]}  Kf6 {[%clk 0:00:04]} 53. c6 {[%clk 0:00:07]}  Ke7 {[%clk 0:00:01]} 54. c7 {[%clk 0:00:08]} 1-0


[Site "https://www.chess.com"]

[Event "Titled Tuesday Blitz January 17 Early 2023"]
[White "Eynullayev, Atilla"]
[Black "Thomas, Anysia"]
[WhiteFideId "13413570"]
[BlackFideId "670472"]
[WhiteElo "2281"]
[BlackElo "2147"]
[Result "1-0"]
[Round "05"]
[TimeControl "180+2"]
[Date "2023.01.17"]
[WhiteClock "0:01:55"]
[BlackClock "0:00:02"]

1. d4 {[%clk 0:02:31]}  Nf6 {[%clk 0:02:57]} 2. c4 {[%clk 0:02:30]}  g6 {[%clk 0:02:57]} 3. Nc3 {[%clk 0:02:31]}  d5 {[%clk 0:02:56]} 4. cxd5 {[%clk 0:02:30]}  Nxd5 {[%clk 0:02:57]} 5. e4 {[%clk 0:02:31]}  Nxc3 {[%clk 0:02:56]} 6. bxc3 {[%clk 0:02:32]}  Bg7 {[%clk 0:02:57]} 7. Nf3 {[%clk 0:02:32]}  c5 {[%clk 0:02:57]} 8. Bb5+ {[%clk 0:02:31]}  Nd7 {[%clk 0:02:51]} 9. O-O {[%clk 0:02:30]}  O-O {[%clk 0:02:51]} 10. Re1 {[%clk 0:02:30]}  a6 {[%clk 0:02:42]} 11. Bf1 {[%clk 0:02:31]}  Nf6 {[%clk 0:02:35]} 12. h3 {[%clk 0:02:25]}  b5 {[%clk 0:02:33]} 13. a4 {[%clk 0:02:24]}  Bb7 {[%clk 0:01:54]} 14. d5 {[%clk 0:02:21]}  Nd7 {[%clk 0:00:53]} 15. axb5 {[%clk 0:02:20]}  Bxc3 {[%clk 0:00:49]} 16. Bh6 {[%clk 0:02:18]}  Re8 {[%clk 0:00:35]} 17. bxa6 {[%clk 0:02:17]}  Ne5 {[%clk 0:00:03]} 18. axb7 {[%clk 0:01:54]}  Rxa1 {[%clk 0:00:02]} 19. Qxa1 {[%clk 0:01:54]}  Bxa1 {[%clk 0:00:03]} 20. Rxa1 {[%clk 0:01:53]}  Nxf3+ {[%clk 0:00:03]} 21. gxf3 {[%clk 0:01:54]}  Qb6 {[%clk 0:00:02]} 22. Ra8 {[%clk 0:01:55]} 1-0


[Site "https://www.chess.com"]